bitfinex/quotes_BTCUSD_20240728
["timestamp","ask_amount","ask_price","bid_price","bid_amount"]
[1722136009556,0.351771,68226.0,68225.0,0.0832]
[1722136009757,0.85423418,68226.0,68225.0,0.0832]
[1722136009970,0.7222926,68226.0,68225.0,0.145]
[1722136010192,0.74529768,68226.0,68225.0,0.145]
[1722136011290,0.75406304,68226.0,68225.0,0.145]
[1722136011650,0.75393009,68226.0,68225.0,0.145]
[1722136011990,0.76293009,68226.0,68225.0,0.145]
[1722136013568,0.76280645,68226.0,68225.0,0.145]
[1722136014492,0.351787,68223.0,68222.0,0.000924]
[1722136014693,0.73206412,68223.0,68222.0,0.000924]
[1722136014871,0.74973144,68223.0,68222.0,0.000924]
[1722136015093,0.7866118,68223.0,68222.0,0.000924]
[1722136016158,0.7926118,68223.0,68222.0,0.000924]
[1722136016549,0.76173144,68223.0,68222.0,0.000924]
[1722136017792,0.76130977,68223.0,68222.0,0.000924]
[1722136017961,0.70841563,68223.0,68222.0,0.000924]
[1722136018168,0.47389063,68223.0,68222.0,0.000924]
[1722136018393,0.12210363,68223.0,68222.0,0.374852]
[1722136018551,0.12210363,68223.0,68222.0,0.492116]
[1722136018552,0.09909777,68223.0,68222.0,0.492116]
[1722136018751,0.08143045,68223.0,68222.0,0.492116]
[1722136019358,0.09914511,68223.0,68222.0,0.492116]
[1722136019964,0.09914511,68223.0,68222.0,0.257588]
[1722136020327,0.09914511,68223.0,68222.0,0.726644]
[1722136020775,0.08135042,68223.0,68222.0,0.726644]
[1722136021599,0.09900541,68223.0,68222.0,0.726644]
[1722136021982,0.12201036,68223.0,68222.0,0.726644]
[1722136022459,0.12201036,68223.0,68222.0,0.492116]
[1722136022703,0.12201036,68223.0,68222.0,0.961172]
[1722136023082,0.09236976,68223.0,68222.0,0.961172]
[1722136023760,0.08636976,68223.0,68222.0,0.726644]
[1722136024207,0.08736976,68223.0,68222.0,0.726644]
[1722136024582,0.08636976,68223.0,68222.0,0.726644]
[1722136024789,0.08636976,68223.0,68222.0,0.961172]
[1722136025401,0.08036976,68223.0,68222.0,0.961172]
[1722136025723,0.08136976,68223.0,68222.0,0.961172]
[1722136025927,0.08136976,68223.0,68222.0,0.962172]
[1722136026356,0.08236976,68223.0,68222.0,0.962172]
[1722136032631,0.05936481,68223.0,68222.0,0.962172]
[1722136035946,0.08236768,68223.0,68222.0,0.962172]
[1722136036440,0.05936481,68223.0,68222.0,0.962172]
[1722136036986,0.05836481,68223.0,68222.0,0.962172]
[1722136037190,0.05836481,68223.0,68222.0,1.1967]
[1722136037375,0.05936481,68223.0,68222.0,1.1967]
[1722136037580,0.4771,68240.0,68239.0,0.117235]
[1722136037815,0.56329295,68240.0,68239.0,0.351705]
[1722136039199,0.58629388,68240.0,68239.0,0.351705]
[1722136039401,0.57302831,68240.0,68239.0,0.351705]
[1722136039608,0.59517964,68240.0,68239.0,0.351705]
[1722136039809,0.60417964,68240.0,68239.0,0.351705]
[1722136041580,0.12707964,68240.0,68239.0,0.351705]
[1722136042557,0.11392831,68240.0,68239.0,0.351705]
[1722136042773,0.12694887,68240.0,68239.0,0.351705]
[1722136043242,0.1269489,68240.0,68239.0,0.351705]
[1722136045011,0.0783,68238.0,68227.0,0.1363]
[1722136045227,0.0783,68238.0,68235.0,0.117241]
[1722136045228,0.06819792,68237.0,68235.0,0.117241]
[1722136045430,0.06819792,68236.0,68235.0,0.117241]
[1722136045816,0.08598307,68236.0,68235.0,0.117241]
[1722136046014,0.08597625,68236.0,68235.0,0.117241]
[1722136046818,0.08997625,68236.0,68235.0,0.117241]
[1722136047018,0.09497625,68236.0,68235.0,0.117241]
[1722136048672,0.09497625,68236.0,68235.0,0.351724]
[1722136049189,0.10496374,68236.0,68235.0,0.351724]
[1722136049392,0.11796777,68236.0,68235.0,0.351724]
[1722136050330,0.09496651,68236.0,68235.0,0.351724]
[1722136052239,0.09496651,68236.0,68235.0,0.117241]
[1722136052583,0.09491674,68236.0,68235.0,0.117241]
[1722136053007,0.08196248,68236.0,68235.0,0.117241]
[1722136053214,0.09497649,68236.0,68235.0,0.117241]
[1722136053414,0.11797775,68236.0,68235.0,0.117241]
[1722136053810,0.11797775,68236.0,68235.0,0.722507]
[1722136054013,0.1001926,68236.0,68235.0,0.95699]
[1722136054447,0.08717859,68236.0,68235.0,0.95699]
[1722136055227,0.10021294,68236.0,68235.0,0.95699]
[1722136055425,0.07917859,68236.0,68235.0,0.95699]
[1722136055648,0.08417859,68236.0,68235.0,0.95699]
[1722136056092,0.08517859,68236.0,68235.0,0.95699]
[1722136056409,0.08017859,68236.0,68235.0,0.95699]
[1722136056617,0.08117859,68236.0,68235.0,0.95799]
[1722136057032,0.09844007,68236.0,68235.0,0.723507]
[1722136057565,0.07543881,68236.0,68235.0,0.723507]
[1722136058127,0.07343881,68236.0,68235.0,0.723507]
[1722136058331,0.07243881,68236.0,68235.0,0.722507]
[1722136058629,0.07243881,68236.0,68235.0,0.95799]
[1722136058784,0.07155381,68236.0,68235.0,0.95799]
[1722136059768,0.07155381,68236.0,68235.0,0.95699]
[1722136060275,0.07155381,68236.0,68235.0,0.95799]
[1722136060845,0.09455371,68236.0,68235.0,0.95799]
[1722136061435,0.09455371,68236.0,68235.0,0.95699]
[1722136061638,0.09555371,68236.0,68235.0,0.95699]
[1722136061876,0.09455371,68236.0,68235.0,0.95799]
[1722136062077,0.07255381,68236.0,68235.0,0.95799]
[1722136062282,0.07255381,68236.0,68235.0,0.95699]
[1722136062689,0.07277279,68236.0,68235.0,0.95799]
[1722136063070,0.07277279,68236.0,68235.0,0.95699]
[1722136063593,0.07377279,68236.0,68235.0,0.95799]
[1722136064295,0.07277279,68236.0,68235.0,0.95799]
[1722136064698,0.07377279,68236.0,68235.0,0.95799]
[1722136065467,0.07366391,68236.0,68235.0,0.95799]
[1722136066778,0.09666381,68236.0,68235.0,0.95799]
[1722136066983,0.07366391,68236.0,68235.0,0.95799]
[1722136068690,0.08017723,68236.0,68235.0,0.95799]
[1722136068867,0.09664238,68236.0,68235.0,0.95799]
[1722136069067,0.09564238,68236.0,68235.0,0.95699]
[1722136069423,0.09564238,68236.0,68235.0,0.001]
[1722136069424,0.17554238,68236.0,68235.0,0.001]
[1722136069812,0.19419294,68236.0,68235.0,0.001]
[1722136070013,0.19419294,68236.0,68234.0,0.117242]
[1722136070250,0.07164248,68235.0,68232.0,0.23449]
[1722136070512,0.03511813,68234.0,68233.0,0.117244]
[1722136070884,0.09029546,68234.0,68233.0,0.117244]
[1722136071911,0.07383031,68234.0,68233.0,0.117244]
[1722136072031,0.09174132,68234.0,68233.0,0.117244]
[1722136072468,0.09174109,68234.0,68224.0,0.0753]
[1722136072673,0.09174109,68234.0,68210.0,0.52483113]
[1722136072674,0.1443,68230.0,68227.0,0.117254]
[1722136073029,0.09072905,68229.0,68226.0,0.117256]
[1722136073195,0.07208811,68228.0,68227.0,0.117255]
[1722136073698,0.09073499,68228.0,68227.0,0.351766]
[1722136074356,0.09073499,68228.0,68227.0,0.117255]
[1722136074764,0.09173499,68228.0,68227.0,0.117255]
[1722136075099,0.09088225,68228.0,68227.0,0.117255]
[1722136075718,0.09088225,68228.0,68227.0,0.351766]
[1722136076463,0.09188225,68228.0,68227.0,0.352766]
[1722136078461,0.09196926,68228.0,68227.0,0.352766]
[1722136078885,0.09196926,68228.0,68227.0,0.118255]
[1722136079224,0.09196926,68228.0,68227.0,0.352766]
[1722136081585,0.07582421,68228.0,68227.0,0.352766]
[1722136081795,0.09200874,68228.0,68227.0,0.352766]
[1722136082805,0.11501105,68228.0,68227.0,0.352766]
[1722136083923,0.11520893,68228.0,68227.0,0.352766]
[1722136086281,0.09220662,68228.0,68227.0,0.352766]
[1722136086737,0.09220662,68228.0,68227.0,0.35369]
[1722136087247,0.09226822,68228.0,68227.0,0.35369]
[1722136089596,0.11527105,68228.0,68227.0,0.35369]
[1722136090009,0.09226822,68228.0,68227.0,0.35369]
[1722136090211,0.11527105,68228.0,68227.0,0.35369]
[1722136090607,0.11529107,68228.0,68227.0,0.35369]
[1722136092676,0.11527233,68228.0,68227.0,0.35369]
[1722136093281,0.0922695,68228.0,68227.0,0.35369]
[1722136094328,0.07582421,68228.0,68227.0,0.35369]
[1722136094526,0.09230596,68228.0,68227.0,0.35369]
[1722136095412,0.07582421,68228.0,68227.0,0.35369]
[1722136095566,0.09232618,68228.0,68227.0,0.35369]
[1722136096913,0.11532897,68228.0,68227.0,0.35369]
[1722136102352,0.098827,68228.0,68227.0,0.35369]
[1722136102504,0.11520369,68228.0,68227.0,0.35369]
[1722136102904,0.11520435,68228.0,68227.0,0.35369]
[1722136105804,0.11518445,68228.0,68227.0,0.35369]
[1722136107502,0.11524173,68228.0,68227.0,0.35369]
[1722136109118,0.11524941,68228.0,68227.0,0.35369]
[1722136109948,0.09224662,68228.0,68227.0,0.35369]
[1722136112487,0.0922521,68228.0,68227.0,0.35369]
[1722136112825,0.07582421,68228.0,68227.0,0.35369]
[1722136113027,0.09225161,68228.0,68227.0,0.35369]
[1722136113248,0.11525395,68228.0,68227.0,0.35369]
[1722136114231,0.09225161,68228.0,68227.0,0.35369]
[1722136115798,0.09220311,68228.0,68227.0,0.35369]
[1722136117233,0.09220311,68228.0,68227.0,0.119179]
[1722136117442,0.28444435,68228.0,68227.0,0.119179]
[1722136118909,0.15802421,68228.0,68227.0,0.119179]
[1722136119117,0.28424974,68228.0,68227.0,0.119179]
[1722136122118,0.30725197,68228.0,68227.0,0.119179]
[1722136122436,0.30725593,68228.0,68227.0,0.119179]
[1722136122803,0.22505551,68228.0,68227.0,0.49839]
[1722136123275,0.22505551,68228.0,68227.0,0.263879]
[1722136123682,0.22505551,68228.0,68227.0,0.49839]
[1722136124190,0.22505551,68228.0,68227.0,0.43599]
[1722136125536,0.11510476,68228.0,68227.0,0.43599]
[1722136125703,0.22514924,68228.0,68227.0,0.43599]
[1722136126466,0.20214701,68228.0,68227.0,0.43599]
[1722136128509,0.20214701,68228.0,68227.0,0.670501]
[1722136128715,0.07582421,68228.0,68227.0,0.670501]
[1722136128936,0.20225094,68228.0,68227.0,0.670501]
[1722136129800,0.09220772,68228.0,68227.0,0.670501]
[1722136130987,0.11520988,68228.0,68227.0,0.670501]
[1722136131425,0.09220772,68228.0,68227.0,0.670501]
[1722136132126,0.09308727,68228.0,68227.0,0.670501]
[1722136132540,0.09309756,68228.0,68227.0,0.670501]
[1722136133994,0.11609968,68228.0,68227.0,0.670501]
[1722136134490,0.09309756,68228.0,68227.0,0.670501]
[1722136135298,0.09292906,68228.0,68227.0,0.670501]
[1722136135502,0.09292906,68228.0,68227.0,0.588201]
[1722136137537,0.11593114,68228.0,68227.0,0.588201]
[1722136137742,0.09292906,68228.0,68227.0,0.588201]
[1722136138642,0.09293697,68228.0,68227.0,0.588201]
[1722136140995,0.11593905,68228.0,68227.0,0.588201]
[1722136141196,0.09882629,68228.0,68227.0,0.588201]
[1722136141521,0.09288318,68228.0,68227.0,0.588201]
[1722136141717,0.07582421,68228.0,68227.0,0.588201]
[1722136141933,0.09287003,68228.0,68227.0,0.588201]
[1722136143423,0.07582421,68228.0,68227.0,0.588201]
[1722136143636,0.0929947,68228.0,68227.0,0.588201]
[1722136144189,0.07582421,68228.0,68227.0,0.588201]
[1722136144386,0.0929947,68228.0,68227.0,0.588201]
[1722136144586,0.11599678,68228.0,68227.0,0.822712]
[1722136144804,0.11599678,68228.0,68227.0,0.965312]
[1722136145017,0.09882629,68228.0,68227.0,1.199823]
[1722136145233,0.08017941,68228.0,68227.0,1.199823]
[1722136145446,0.09195536,68228.0,68227.0,1.199823]
[1722136145856,0.06895328,68228.0,68227.0,1.199823]
[1722136146054,0.002,68228.0,68227.0,1.199823]
[1722136147910,0.002,68228.0,68227.0,1.275723]
[1722136148748,0.06895328,68228.0,68227.0,1.275723]
[1722136148895,0.002,68228.0,68227.0,1.275723]
[1722136149256,0.02500088,68228.0,68227.0,1.275723]
[1722136149452,0.06895328,68228.0,68227.0,1.275723]
[1722136149630,0.002,68228.0,68227.0,1.275723]
[1722136151448,0.002,68228.0,68227.0,1.041212]
[1722136152299,0.002,68228.0,68227.0,0.822712]
[1722136152772,0.02500059,68228.0,68227.0,0.822712]
[1722136153128,0.06895328,68228.0,68227.0,0.822712]
[1722136153324,0.002,68228.0,68227.0,0.822712]
[1722136156442,0.0250015,68228.0,68227.0,0.822712]
[1722136156644,0.06895328,68228.0,68227.0,0.822712]
[1722136156885,0.002,68228.0,68227.0,0.822712]
[1722136159997,0.02500135,68228.0,68227.0,0.822712]
[1722136160321,0.08830708,68228.0,68227.0,0.822712]
[1722136160687,0.08679409,68228.0,68227.0,0.822712]
[1722136162340,0.08679409,68228.0,68227.0,0.966512]
[1722136163440,0.08679409,68228.0,68227.0,0.903712]
[1722136164004,0.08679409,68228.0,68227.0,0.822712]
[1722136166511,0.11764256,68228.0,68227.0,0.822712]
[1722136166935,0.11748235,68228.0,68227.0,0.822712]
[1722136167358,0.11755855,68228.0,68227.0,0.966512]
[1722136167947,0.0945572,68228.0,68227.0,0.966512]
[1722136170143,0.06386894,68228.0,68227.0,0.966512]
[1722136170367,0.09495722,68228.0,68227.0,0.966512]
[1722136170677,0.09495726,68228.0,68227.0,0.966512]
[1722136171098,0.11795865,68228.0,68227.0,0.966512]
[1722136171713,0.09495726,68228.0,68227.0,0.966512]
[1722136173558,0.09492564,68228.0,68227.0,0.966512]
[1722136174980,0.1179269,68228.0,68227.0,0.966512]
[1722136175348,0.09492564,68228.0,68227.0,0.966512]
[1722136176754,0.09496864,68228.0,68227.0,0.966512]
[1722136178171,0.1179699,68228.0,68227.0,0.966512]
[1722136178776,0.09496864,68228.0,68227.0,0.903712]
[1722136180512,0.09447964,68228.0,68227.0,0.903712]
[1722136181718,0.09531964,68228.0,68227.0,0.903712]
[1722136181940,0.1183209,68228.0,68227.0,0.903712]
[1722136182141,0.13686541,68228.0,68227.0,0.903712]
[1722136182575,0.13686541,68228.0,68227.0,0.822712]
[1722136182726,0.13686541,68228.0,68227.0,0.898612]
[1722136183064,0.10625471,68228.0,68227.0,0.898612]
[1722136183263,0.11304635,68228.0,68227.0,0.898612]
[1722136183467,0.09450184,68228.0,68227.0,0.898612]
[1722136185592,0.09450184,68228.0,68227.0,0.664101]
[1722136185993,0.11353833,68228.0,68227.0,0.664101]
[1722136186515,0.13626795,68228.0,68227.0,0.664101]
[1722136186912,0.19286669,68228.0,68227.0,0.664101]
[1722136187090,0.25786669,68228.0,68227.0,0.664101]
[1722136188637,0.19286669,68228.0,68227.0,0.664101]
[1722136189053,0.11326669,68228.0,68227.0,0.664101]
[1722136189621,0.0942812,68228.0,68227.0,0.664101]
[1722136189831,0.0942812,68228.0,68227.0,0.898612]
[1722136190183,0.11741282,68228.0,68227.0,0.898612]
[1722136190318,0.09441139,68228.0,68227.0,0.898612]
[1722136191967,0.09430211,68228.0,68227.0,0.898612]
[1722136192885,0.09432807,68228.0,68227.0,0.898612]
[1722136193705,0.11732942,68228.0,68227.0,0.898612]
[1722136194892,0.09432807,68228.0,68227.0,0.898612]
[1722136196279,0.09444486,68228.0,68227.0,0.898612]
[1722136197061,0.08879538,68228.0,68227.0,0.898612]
[1722136198287,0.11179673,68228.0,68227.0,0.898612]
[1722136199439,0.08879538,68228.0,68227.0,0.898612]
[1722136199671,0.05905946,68228.0,68227.0,0.898612]
[1722136199885,0.0310917,68228.0,68227.0,0.898612]
[1722136200112,0.05905946,68228.0,68227.0,0.898612]
[1722136200356,0.00132701,68228.0,68227.0,0.898612]
[1722136202661,0.02432794,68228.0,68227.0,0.898612]
[1722136204046,0.00132701,68228.0,68227.0,0.898612]
[1722136207107,0.02432802,68228.0,68227.0,0.898612]
[1722136207384,0.00132701,68228.0,68227.0,0.898612]
[1722136208342,0.00132701,68228.0,68227.0,0.822712]
[1722136208589,0.00132701,68228.0,68227.0,0.898612]
[1722136210741,0.02432806,68228.0,68227.0,0.898612]
[1722136210938,0.00132701,68228.0,68227.0,0.898612]
[1722136213529,0.00132701,68228.0,68227.0,0.588201]
[1722136213707,0.16729781,68228.0,68227.0,0.588201]
[1722136213909,0.2208207,68228.0,68227.0,0.588201]
[1722136214136,0.24042895,68228.0,68227.0,0.588201]
[1722136214341,0.26343013,68228.0,68227.0,0.588201]
[1722136214761,0.24040755,68228.0,68227.0,0.588201]
[1722136214965,0.21085815,68228.0,68227.0,0.588201]
[1722136215279,0.24040743,68228.0,68227.0,0.664101]
[1722136217971,0.2634089,68228.0,68227.0,0.664101]
[1722136218125,0.24040743,68228.0,68227.0,0.664101]
[1722136218322,0.24040743,68228.0,68227.0,0.588201]
[1722136218323,0.24000602,68228.0,68227.0,0.588201]
[1722136218522,0.24000602,68228.0,68227.0,0.664101]
[1722136221281,0.26300749,68228.0,68227.0,0.664101]
[1722136221478,0.26263493,68228.0,68227.0,0.664101]
[1722136221881,0.26263492,68228.0,68227.0,0.664101]
[1722136222268,0.26079364,68228.0,68227.0,0.664101]
[1722136224800,0.26078646,68228.0,68227.0,0.664101]
[1722136226275,0.26078646,68228.0,68227.0,0.898612]
[1722136226476,0.12438646,68228.0,68227.0,0.664101]
[1722136227984,0.09529818,68228.0,68227.0,0.664101]
[1722136228163,0.12462861,68228.0,68227.0,0.664101]
[1722136229565,0.12462861,68228.0,68227.0,0.898612]
[1722136230178,0.12462861,68228.0,68227.0,0.978412]
[1722136230377,0.09529818,68228.0,68227.0,1.041312]
[1722136230739,0.07568993,68228.0,68227.0,1.42608257]
[1722136230947,0.00084,68244.0,68243.0,0.820596]
[1722136231149,0.00084,68244.0,68243.0,1.039196]
[1722136231730,0.00084,68244.0,68243.0,1.273652]
[1722136232492,0.00084,68244.0,68243.0,1.42391157]
[1722136232493,0.00184,68244.0,68243.0,1.42391157]
[1722136232690,0.00184,68244.0,68243.0,1.44991157]
[1722136233093,0.00284,68244.0,68243.0,1.44691157]
[1722136233508,0.00384,68244.0,68243.0,1.45891157]
[1722136233712,0.00384,68244.0,68243.0,1.46091157]
[1722136234469,0.00084,68244.0,68243.0,1.44891157]
[1722136234701,0.00084,68244.0,68243.0,1.78336757]
[1722136234897,0.00184,68244.0,68243.0,1.79736757]
[1722136235076,0.00184,68244.0,68243.0,1.56291157]
[1722136235219,0.00184,68244.0,68243.0,1.80620575]
[1722136235419,0.02483278,68244.0,68243.0,1.96080575]
[1722136235632,0.0015542,68266.0,68265.0,0.82033]
[1722136235858,0.0015542,68266.0,68265.0,0.89623]
[1722136236057,0.02546084,68266.0,68265.0,0.89623]
[1722136236463,0.0636,68267.0,68266.0,0.585942]
[1722136237485,0.0636,68267.0,68266.0,0.820319]
[1722136237686,0.0666,68267.0,68266.0,0.820319]
[1722136238513,0.0686,68267.0,68266.0,0.820319]
[1722136239659,0.0686,68267.0,68266.0,0.585942]
[1722136239863,0.0686,68267.0,68266.0,0.661842]
[1722136240063,0.005,68267.0,68266.0,0.661842]
[1722136243007,0.005,68267.0,68266.0,0.351565]
[1722136243435,0.005,68267.0,68266.0,0.585942]
[1722136244635,0.0065542,68267.0,68266.0,0.585942]
[1722136245047,0.005,68267.0,68266.0,0.585942]
[1722136245449,0.02799113,68267.0,68266.0,0.585942]
[1722136246493,0.02883113,68267.0,68266.0,0.351565]
[1722136247260,0.05279205,68267.0,68266.0,0.351565]
[1722136248021,0.05279205,68267.0,68258.0,0.234403]
[1722136248022,0.0814,68264.0,68258.0,0.234403]
[1722136248232,0.063,68261.0,68260.0,0.117198]
[1722136248435,0.08695822,68261.0,68260.0,0.117198]
[1722136248661,0.08695822,68261.0,68260.0,0.351595]
[1722136249009,0.063,68261.0,68260.0,0.351595]
[1722136249211,0.08695822,68261.0,68260.0,0.351595]
[1722136249547,0.08795822,68261.0,68260.0,0.356595]
[1722136250163,0.08795822,68261.0,68260.0,0.360595]
[1722136253463,0.064,68261.0,68260.0,0.360595]
[1722136254343,0.0655542,68261.0,68260.0,0.360595]
[1722136254481,0.08948901,68261.0,68260.0,0.360595]
[1722136254684,0.08793481,68261.0,68260.0,0.360595]
[1722136255806,0.08948901,68261.0,68260.0,0.360595]
[1722136256012,0.08793481,68261.0,68260.0,0.360595]
[1722136256347,0.08948901,68261.0,68260.0,0.360595]
[1722136257099,0.08793481,68261.0,68260.0,0.360595]
[1722136257297,0.11092699,68261.0,68260.0,0.360595]
[1722136257498,0.08793481,68261.0,68260.0,0.360595]
[1722136258407,0.11688608,68261.0,68260.0,0.360595]
[1722136259582,0.11844028,68261.0,68260.0,0.360595]
[1722136259961,0.15841613,68261.0,68260.0,0.360595]
[1722136260177,0.12791066,68261.0,68260.0,0.360595]
[1722136260375,0.1568708,68261.0,68260.0,0.360595]
[1722136260708,0.15706138,68261.0,68260.0,0.360595]
[1722136261656,0.15706138,68261.0,68260.0,0.594992]
[1722136261861,0.09406138,68261.0,68260.0,0.594992]
[1722136262110,0.07012657,68261.0,68260.0,0.670892]
[1722136262677,0.09407164,68261.0,68260.0,0.670892]
[1722136263753,0.11706362,68261.0,68260.0,0.670892]
[1722136264535,0.11943519,68261.0,68260.0,0.670892]
[1722136264933,0.11942456,68261.0,68260.0,0.670892]
[1722136265376,0.09643258,68261.0,68260.0,0.670892]
[1722136265757,0.09673845,68261.0,68260.0,0.670892]
[1722136267837,0.11973039,68261.0,68260.0,0.670892]
[1722136268995,0.0902738,68261.0,68260.0,0.670892]
[1722136269327,0.11963139,68261.0,68260.0,0.670892]
[1722136269455,0.11963145,68261.0,68260.0,0.670892]
[1722136269862,0.09663951,68261.0,68260.0,0.670892]
[1722136272291,0.06728186,68261.0,68260.0,0.670892]
[1722136272488,0.09666645,68261.0,68260.0,0.670892]
[1722136274465,0.09666645,68261.0,68260.0,0.971189]
[1722136274677,0.09666645,68261.0,68260.0,0.905789]
[1722136274935,0.07269754,68261.0,68260.0,0.905789]
[1722136275722,0.07269753,68261.0,68260.0,0.905789]
[1722136276469,0.09568932,68261.0,68260.0,0.905789]
[1722136278621,0.09652932,68261.0,68260.0,0.905789]
[1722136279159,0.06716858,68261.0,68260.0,0.905789]
[1722136279417,0.09652514,68261.0,68260.0,0.905789]
[1722136279641,0.09652535,68261.0,68260.0,0.905789]
[1722136280908,0.09652535,68261.0,68260.0,0.829389]
[1722136281792,0.07353356,68261.0,68260.0,0.829389]
[1722136282491,0.04417679,68261.0,68260.0,0.829389]
[1722136282704,0.03134866,68261.0,68260.0,0.829389]
[1722136282913,0.07368545,68261.0,68260.0,0.829389]
[1722136284512,0.09762418,68261.0,68260.0,0.829389]
[1722136285757,0.09761773,68261.0,68260.0,0.829389]
[1722136286447,0.12060962,68261.0,68260.0,0.829389]
[1722136286846,0.09761773,68261.0,68260.0,0.829389]
[1722136288848,0.06811552,68261.0,68260.0,0.829389]
[1722136289168,0.06811552,68261.0,68260.0,0.594992]
[1722136289169,0.24116213,68261.0,68260.0,0.594992]
[1722136289403,0.21181552,68261.0,68260.0,0.594992]
[1722136289688,0.26415382,68261.0,68260.0,0.594992]
[1722136289995,0.24116209,68261.0,68260.0,0.594992]
[1722136292171,0.24080654,68261.0,68260.0,0.594992]
[1722136293273,0.26379836,68261.0,68260.0,0.594992]
[1722136293984,0.24080654,68261.0,68260.0,0.594992]
[1722136295555,0.24078573,68261.0,68260.0,0.594992]
[1722136297389,0.26377755,68261.0,68260.0,0.594992]
[1722136298177,0.24078573,68261.0,68260.0,0.594992]
[1722136298583,0.21181552,68261.0,68260.0,0.594992]
[1722136298787,0.24062165,68261.0,68260.0,0.594992]
[1722136299008,0.21181552,68261.0,68260.0,0.594992]
[1722136299335,0.24062164,68261.0,68260.0,0.594992]
[1722136299528,0.23828543,68261.0,68260.0,0.594992]
[1722136301324,0.26127726,68261.0,68260.0,0.594992]
[1722136301738,0.23828543,68261.0,68260.0,0.360595]
[1722136301935,0.23822002,68261.0,68260.0,0.360595]
[1722136302195,0.17452002,68261.0,68260.0,0.360595]
[1722136302332,0.09607422,68261.0,68260.0,0.360595]
[1722136302548,0.09607422,68261.0,68260.0,0.594992]
[1722136302749,0.09452002,68261.0,68260.0,0.360595]
[1722136302952,0.09607422,68261.0,68260.0,0.360595]
[1722136303723,0.09452002,68261.0,68260.0,0.360595]
[1722136304253,0.09452002,68261.0,68260.0,0.594992]
[1722136304465,0.09452002,68261.0,68260.0,0.360595]
[1722136305051,0.09452002,68261.0,68260.0,0.594992]
[1722136305252,0.09611491,68261.0,68260.0,0.360595]
[1722136305458,0.09456071,68261.0,68260.0,0.360595]
[1722136305662,0.09611491,68261.0,68260.0,0.360595]
[1722136305861,0.09456071,68261.0,68260.0,0.360595]
[1722136306311,0.11910665,68261.0,68260.0,0.360595]
[1722136306518,0.11755245,68261.0,68260.0,0.360595]
[1722136306716,0.09456071,68261.0,68260.0,0.360595]
[1722136307521,0.09456071,68261.0,68260.0,0.594992]
[1722136308174,0.09456071,68261.0,68260.0,0.360595]
[1722136308926,0.09394778,68261.0,68260.0,0.360595]
[1722136309662,0.11693956,68261.0,68260.0,0.360595]
[1722136309865,0.11693956,68261.0,68260.0,0.594992]
[1722136310024,0.09550198,68261.0,68260.0,0.594992]
[1722136310204,0.09550198,68261.0,68260.0,0.360595]
[1722136311233,0.09394778,68261.0,68260.0,0.360595]
[1722136311429,0.09394778,68261.0,68260.0,0.594992]
[1722136311631,0.09540692,68261.0,68260.0,0.594992]
[1722136311835,0.09406063,68261.0,68260.0,0.594992]
[1722136312244,0.09561483,68261.0,68260.0,0.594992]
[1722136312457,0.09406063,68261.0,68260.0,0.594992]
[1722136312676,0.09406063,68261.0,68260.0,0.738392]
[1722136312974,0.09406063,68261.0,68260.0,0.734392]
[1722136313207,0.11705217,68261.0,68260.0,0.734392]
[1722136313322,0.11517822,68261.0,68260.0,0.734392]
[1722136313985,0.11517822,68261.0,68260.0,0.737392]
[1722136314178,0.09218668,68261.0,68260.0,0.737392]
[1722136314376,0.09118668,68261.0,68260.0,0.732392]
[1722136314941,0.09118668,68261.0,68260.0,0.736392]
[1722136314942,0.08960682,68261.0,68260.0,0.736392]
[1722136315623,0.09116102,68261.0,68260.0,0.736392]
[1722136316406,0.08960682,68261.0,68260.0,0.736392]
[1722136316605,0.08960682,68261.0,68260.0,0.970789]
[1722136316751,0.08960682,68261.0,68260.0,0.736392]
[1722136318273,0.08961395,68261.0,68260.0,0.736392]
[1722136318938,0.11260549,68261.0,68260.0,0.736392]
[1722136320990,0.0858969,68261.0,68260.0,0.736392]
[1722136321196,0.11258628,68261.0,68260.0,0.736392]
[1722136322566,0.08959474,68261.0,68260.0,0.736392]
[1722136323850,0.08946966,68261.0,68260.0,0.675992]
[1722136324056,0.08946959,68261.0,68260.0,0.675992]
[1722136325310,0.23416959,68261.0,68260.0,0.007]
[1722136325737,0.32222377,68261.0,68260.0,0.124198]
[1722136325938,0.25716143,68261.0,68260.0,0.007]
[1722136326451,0.34521636,68261.0,68260.0,0.007]
[1722136326673,0.34521636,68261.0,68259.0,0.1172]
[1722136326674,0.25716143,68261.0,68259.0,0.1172]
[1722136326790,0.15274532,68260.0,68259.0,0.1172]
[1722136327244,0.13705015,68260.0,68259.0,0.1172]
[1722136327703,0.13705037,68260.0,68259.0,0.1172]
[1722136328058,0.13905037,68260.0,68259.0,0.1172]
[1722136328640,0.17630032,68260.0,68259.0,0.1172]
[1722136328845,0.17730032,68260.0,68259.0,0.1172]
[1722136329532,0.17729326,68260.0,68259.0,0.1172]
[1722136329972,0.17884746,68260.0,68259.0,0.1172]
[1722136330172,0.17729326,68260.0,68259.0,0.1172]
[1722136330391,0.17739397,68260.0,68259.0,0.1172]
[1722136330587,0.17894817,68260.0,68259.0,0.1172]
[1722136330949,0.17739397,68260.0,68259.0,0.351601]
[1722136331559,0.17894817,68260.0,68259.0,0.351601]
[1722136331785,0.08934643,68260.0,68259.0,0.351601]
[1722136333511,0.06525067,68260.0,68259.0,0.351601]
[1722136333717,0.08978461,68260.0,68259.0,0.351601]
[1722136334834,0.09133881,68260.0,68259.0,0.351601]
[1722136335038,0.0898092,68260.0,68259.0,0.351601]
[1722136335252,0.0913634,68260.0,68259.0,0.351601]
[1722136335456,0.0898092,68260.0,68259.0,0.351601]
[1722136335660,0.0913634,68260.0,68259.0,0.351601]
[1722136335863,0.0898092,68260.0,68259.0,0.351601]
[1722136336039,0.0913634,68260.0,68259.0,0.351601]
[1722136336236,0.0898092,68260.0,68259.0,0.351601]
[1722136336424,0.0913634,68260.0,68259.0,0.351601]
[1722136336626,0.0898092,68260.0,68259.0,0.351601]
[1722136337179,0.08979257,68260.0,68259.0,0.351601]
[1722136337339,0.11278462,68260.0,68259.0,0.351601]
[1722136338468,0.08979257,68260.0,68259.0,0.351601]
[1722136338783,0.09134677,68260.0,68259.0,0.586002]